fUST/lending_fUST_20250201
["ID","MTS","AMOUNT","RATE_DAILY","PERIOD"]
[351157325,1738369769063,-500.0,0.00016438,2]
[351157326,1738369769083,-500.0,0.00016438,2]
[351157327,1738369769103,-500.0,0.00016438,2]
[351157328,1738369769123,-500.0,0.00016438,2]
[351157329,1738369769142,-568.29302113,0.00016438,2]
[351157330,1738369769163,-500.0,0.00016438,2]
[351157331,1738369769186,-500.0,0.00016438,2]
[351157332,1738369769207,-500.0,0.00016438,2]
[351157333,1738369769228,-500.0,0.00016575,2]
[351157334,1738369769251,-500.0,0.00016575,2]
[351157335,1738369769272,-206.1810974,0.00016575,2]
[351157336,1738369769292,-636.73,0.00016575,2]
[351157337,1738369769312,-500.0,0.00016575,2]
[351157338,1738369769332,-291.4943869,0.00016575,2]
[351157339,1738369769353,-500.0,0.00016575,2]
[351157340,1738369769372,-500.0,0.00016575,2]
[351157341,1738369769393,-500.0,0.00016575,2]
[351157342,1738369769414,-500.0,0.00016575,2]
[351157343,1738369769434,-534.57,0.00016575,2]
[351157344,1738369769455,-844.76,0.00016575,2]
[351157345,1738369769475,-500.0,0.00016575,2]
[351157346,1738369769497,-519.33,0.00016575,2]
[351157347,1738369769518,-500.0,0.00016575,2]
[351157348,1738369769539,-500.0,0.00016575,2]
[351157349,1738369769560,-500.0,0.00016575,2]
[351157350,1738369769582,-841.68,0.00016575,2]
[351157351,1738369769604,-500.0,0.00016575,2]
[351157352,1738369769625,-500.0,0.00016575,2]
[351157353,1738369769646,-611.63,0.00016575,2]
[351157354,1738369769667,-500.0,0.00016575,2]
[351157355,1738369769688,-1030.39,0.00016575,2]
[351157356,1738369769709,-500.0,0.00016575,2]
[351157357,1738369769731,-500.0,0.00016575,2]
[351157358,1738369769751,-500.0,0.00016575,2]
[351157359,1738369769773,-500.0,0.00016575,2]
[351157360,1738369769794,-500.0,0.00016575,2]
[351157361,1738369769816,-522.38,0.00016575,2]
[351157362,1738369769836,-500.0,0.00016575,2]
[351157363,1738369769858,-500.0,0.00016575,2]
[351157364,1738369769879,-500.0,0.00016575,2]
[351157365,1738369769899,-500.0,0.00016575,2]
[351157366,1738369769920,-553.64212849,0.00016575,2]
[351157367,1738369769943,-500.0,0.00016575,2]
[351157368,1738369769963,-500.0,0.00016575,2]
[351157369,1738369769988,-323.86,0.00016575,2]
[351157370,1738369770011,-500.0,0.00016575,2]
[351157371,1738369770033,-500.0,0.00016712,2]
[351157372,1738369770056,-844.76,0.00016712,2]
[351157373,1738369770079,-519.33,0.00016712,2]
[351157374,1738369770100,-500.0,0.00016712,2]
[351157375,1738369770122,-841.68,0.00016712,2]
[351157376,1738369770143,-500.0,0.00016712,2]
[351157377,1738369770166,-611.63,0.00016712,2]
[351157378,1738369770191,-1030.39,0.00016712,2]
[351157379,1738369770212,-500.0,0.00016712,2]
[351157380,1738369770234,-594.50141561,0.00016712,2]
[351157381,1738369770254,-500.0,0.00016712,2]
[351157382,1738369770278,-500.0,0.00016712,2]
[351157383,1738369770299,-522.38,0.00016712,2]
[351157384,1738369770320,-500.0,0.00016712,2]
[351157385,1738369770343,-500.0,0.00016712,2]
[351157386,1738369770365,-500.0,0.00016712,2]
[351157387,1738369770385,-166.94562088,0.0001676,2]
[351157388,1738369770407,-500.0,0.00016849,2]
[351157389,1738369770430,-844.76,0.00016849,2]
[351157390,1738369770453,-519.33,0.00016849,2]
[351157391,1738369770476,-500.0,0.00016849,2]
[351157392,1738369770498,-841.68,0.00016849,2]
[351157393,1738369770521,-500.0,0.00016849,2]
[351157394,1738369770543,-611.63,0.00016849,2]
[351157395,1738369770566,-1030.39,0.00016849,2]
[351157396,1738369770587,-500.0,0.00016849,2]
[351157397,1738369770608,-500.0,0.00016849,2]
[351157398,1738369770630,-500.0,0.00016849,2]
[351157399,1738369770652,-522.38,0.00016849,2]
[351157400,1738369770674,-500.0,0.00016849,2]
[351157401,1738369770695,-500.0,0.00016849,2]
[351157402,1738369770717,-500.0,0.00016849,2]
[351157403,1738369770737,-500.0,0.00016858,2]
[351157404,1738369770761,-500.0,0.00016858,2]
[351157405,1738369770782,-500.0,0.00016858,2]
[351157406,1738369770803,-500.0,0.00016858,2]
[351157407,1738369770822,-500.0,0.00016858,2]
[351157408,1738369770841,-156.1729452,0.00016858,2]
[351157409,1738369770861,-419.08633192,0.00016858,2]
[351157410,1738369770884,-500.0,0.00016858,2]
[351157411,1738369770904,-500.0,0.00016858,2]
[351157412,1738369770925,-500.0,0.00016858,2]
[351157413,1738369770946,-500.0,0.00016858,2]
[351157414,1738369770967,-500.0,0.00016858,2]
[351157415,1738369770989,-500.0,0.00016858,2]
[351157416,1738369771009,-395.03417916,0.00016858,2]
[351157417,1738369771032,-592.16480427,0.00016858,2]
[351157418,1738369771053,-409.96601417,0.00016858,2]
[351157419,1738369771074,-500.0,0.00016858,2]
[351157420,1738369771095,-500.0,0.00016858,2]
[351157421,1738369771118,-500.0,0.00016858,2]
[351157422,1738369771141,-500.0,0.00016858,2]
[351157423,1738369771164,-500.0,0.00016858,2]
[351157424,1738369771188,-500.0,0.00016858,2]
[351157425,1738369771209,-500.0,0.00016858,2]
[351157426,1738369771232,-500.0,0.00016858,2]
[351157427,1738369771255,-500.0,0.00016858,2]
[351157428,1738369771278,-500.0,0.00016858,2]
[351157429,1738369771299,-27713.53128651,0.00016859,5]
[351157430,1738369771416,-6499.24122243,0.00016859,5]
[351157431,1738369771438,-500.0,0.00016859,2]
[351157432,1738369771461,-500.0,0.00016859,2]
[351157433,1738369771482,-500.0,0.00016859,2]
[351157434,1738369771502,-374.09269877,0.00016859,2]
[351157435,1738369771522,-500.0,0.00016859,2]
[351157436,1738369771547,-500.0,0.00016859,2]
[351157437,1738369771568,-500.0,0.00016859,2]
[351157438,1738369771588,-500.0,0.00016859,2]
[351157439,1738369771609,-500.0,0.00016859,2]
[351157440,1738369771628,-501.46445484,0.00016859,2]
[351157441,1738369771649,-500.0,0.00016859,2]
[351157442,1738369771670,-544.03739482,0.00016859,2]
[351157443,1738369771690,-500.0,0.00016859,2]
[351157444,1738369771710,-500.0,0.00016859,2]
[351157445,1738369771731,-500.0,0.00016859,2]
[351157446,1738369771751,-500.0,0.00016859,2]
[351157447,1738369771772,-500.0,0.00016859,2]
[351157448,1738369771791,-500.0,0.00016859,2]
[351157449,1738369771812,-500.0,0.00016859,2]
[351157450,1738369771833,-500.0,0.00016859,2]
[351157451,1738369771853,-500.0,0.00016859,2]
[351157452,1738369771874,-500.0,0.00016859,2]
[351157453,1738369771894,-509.74842933,0.00016859,2]
[351157454,1738369771914,-421.75165438,0.00016859,2]
[351157455,1738369771935,-500.0,0.00016859,2]
[351157456,1738369771958,-500.0,0.00016859,2]
[351157457,1738369771979,-500.0,0.00016859,2]
[351157458,1738369771998,-577.45045515,0.00016859,2]
[351157459,1738369772016,-237.25575412,0.00016859,2]
[351157460,1738369772036,-500.0,0.00016859,2]
[351157461,1738369772056,-500.0,0.00016859,2]
[351157462,1738369772075,-500.0,0.00016859,2]
[351157463,1738369772094,-500.0,0.00016859,2]
[351157464,1738369772114,-500.0,0.00016859,2]
[351157465,1738369772133,-593.49373038,0.00016859,2]
[351157466,1738369772152,-500.0,0.00016859,2]
[351157467,1738369772171,-580.86815225,0.00016859,2]
[351157468,1738369772194,-500.0,0.00016859,2]
[351157469,1738369772213,-500.0,0.00016859,2]
[351157470,1738369772233,-500.0,0.00016859,2]
[351157471,1738369772253,-500.0,0.00016859,2]
[351157472,1738369772273,-500.0,0.00016859,2]
[351157473,1738369772293,-500.0,0.00016859,2]
[351157474,1738369772312,-500.0,0.00016859,2]
[351157475,1738369772331,-630.46791525,0.00016859,2]
[351157476,1738369772352,-500.0,0.00016859,2]
[351157477,1738369772372,-500.0,0.00016859,2]
[351157478,1738369772392,-500.0,0.00016859,2]
[351157479,1738369772412,-500.0,0.00016859,2]
[351157480,1738369772432,-514.19,0.00016859,2]
[351157481,1738369772450,-500.0,0.00016859,2]
[351157482,1738369772470,-500.0,0.00016859,2]
[351157483,1738369772490,-500.03924809,0.00016859,2]
[351157484,1738369772509,-500.0,0.00016859,2]
[351157485,1738369772529,-500.0,0.00016859,2]
[351157486,1738369772549,-500.0,0.00016859,2]
[351157487,1738369772569,-500.0,0.00016859,2]
[351157488,1738369772588,-500.0,0.00016859,2]
[351157489,1738369772607,-500.0,0.00016859,2]
[351157490,1738369772626,-500.0,0.00016859,2]
[351157491,1738369772646,-500.51672209,0.00016859,2]
[351157492,1738369772666,-500.0,0.00016859,2]
[351157493,1738369772685,-500.0,0.00016859,2]
[351157494,1738369772704,-500.0,0.00016859,2]
[351157495,1738369772724,-500.0,0.00016859,2]
[351157496,1738369772743,-500.0,0.00016859,2]
[351157497,1738369772764,-500.0,0.00016859,2]
[351157498,1738369772784,-500.0,0.00016859,2]
[351157499,1738369772803,-474.67343182,0.00016859,2]
[351157500,1738369772823,-500.0,0.00016859,2]
[351157501,1738369772842,-500.0,0.00016859,2]
[351157502,1738369772862,-500.0,0.00016859,2]
[351157503,1738369772881,-500.0,0.00016859,2]
[351157504,1738369772900,-500.0,0.00016859,2]
[351157505,1738369772919,-500.0,0.00016859,2]
[351157506,1738369772938,-500.0,0.00016859,2]
[351157507,1738369772957,-500.0,0.00016859,2]
[351157508,1738369772976,-500.0,0.00016859,2]
[351157509,1738369772995,-507.95893826,0.00016859,2]
[351157510,1738369773014,-500.0,0.00016859,2]
[351157511,1738369773033,-500.0,0.00016859,2]
[351157512,1738369773053,-500.0,0.00016859,2]
[351157513,1738369773072,-500.0,0.00016859,2]
[351157514,1738369773093,-500.0,0.00016859,2]
[351157515,1738369773112,-500.0,0.00016859,2]
[351157516,1738369773132,-500.0,0.00016859,2]
[351157517,1738369773153,-500.0,0.00016859,2]
[351157518,1738369773173,-500.0,0.00016859,2]
[351157519,1738369773197,-404.86658746,0.00016859,2]
[351157520,1738369773218,-500.0,0.00016859,2]
[351157521,1738369773238,-500.0,0.00016859,2]
[351157522,1738369773259,-500.0,0.00016859,2]
[351157523,1738369773281,-500.0,0.00016859,2]
[351157524,1738369773301,-500.0,0.00016859,2]
[351157525,1738369773321,-500.0,0.00016859,2]
[351157526,1738369773341,-500.0,0.00016859,2]
[351157527,1738369773362,-501.89851125,0.00016859,2]
[351157528,1738369773383,-500.0,0.00016859,2]
[351157529,1738369773402,-500.0,0.00016859,2]
[351157530,1738369773422,-500.0,0.00016859,2]
[351157531,1738369773442,-500.0,0.00016859,2]
[351157532,1738369773462,-500.0,0.00016859,2]
[351157533,1738369773482,-500.41199787,0.00016859,2]
[351157534,1738369773502,-500.0,0.00016859,2]
[351157535,1738369773523,-500.0,0.00016859,2]
[351157536,1738369773543,-500.0,0.00016859,2]
[351157537,1738369773563,-500.0,0.00016859,2]
[351157538,1738369773584,-500.0,0.00016859,2]
[351157539,1738369773606,-1165.64,0.00016859,2]
[351157540,1738369773626,-500.0,0.00016859,2]
[351157541,1738369773645,-500.0,0.00016859,2]
[351157542,1738369773666,-500.0,0.00016859,2]
[351157543,1738369773688,-500.0,0.00016859,2]
[351157544,1738369773709,-500.0,0.00016859,2]
[351157545,1738369773729,-500.0,0.00016859,2]
[351157546,1738369773749,-500.0,0.00016859,2]
[351157547,1738369773769,-500.0,0.00016859,2]
[351157548,1738369773789,-500.0,0.00016859,2]
[351157549,1738369773809,-500.0,0.00016859,2]
[351157550,1738369773828,-500.0,0.00016859,2]
[351157551,1738369773850,-500.0,0.00016859,2]
[351157552,1738369773874,-500.0,0.00016859,2]
[351157553,1738369773894,-204.53086395,0.00016859,2]
[351157554,1738369773914,-500.0,0.00016859,2]
[351157555,1738369773934,-500.0,0.00016859,2]
[351157556,1738369773954,-500.0,0.00016859,2]
[351157557,1738369773975,-500.0,0.00016859,2]
[351157558,1738369773995,-500.0,0.00016859,2]
[351157559,1738369774016,-500.0,0.00016859,2]
[351157560,1738369774036,-500.0,0.00016859,2]
[351157561,1738369774164,-500.0,0.00016859,2]
[351157562,1738369774188,-500.0,0.00016859,2]
[351157563,1738369774209,-500.0,0.00016859,2]
[351157564,1738369774232,-528.66,0.00016859,2]
[351157565,1738369774252,-500.0,0.00016859,2]
[351157566,1738369774273,-500.0,0.00016859,2]
[351157567,1738369774293,-500.0,0.00016859,2]
[351157568,1738369774313,-500.0,0.00016859,2]
[351157569,1738369774336,-500.0,0.00016859,2]
[351157570,1738369774356,-500.0,0.00016859,2]
[351157571,1738369774376,-500.0,0.00016859,2]
[351157572,1738369774395,-500.0,0.00016859,2]
[351157573,1738369774415,-500.0,0.00016859,2]
[351157574,1738369774437,-500.0,0.00016859,2]
[351157575,1738369774457,-500.0,0.00016859,2]
[351157576,1738369774478,-500.0,0.00016859,2]
[351157577,1738369774497,-500.0,0.00016859,2]
[351157578,1738369774517,-500.0,0.00016859,2]
[351157579,1738369774538,-267.87210991,0.00016859,2]
[351157580,1738369774558,-500.0,0.00016859,2]
[351157581,1738369774579,-288.02352636,0.00016859,2]
[351157582,1738369774599,-518.12376,0.00016859,2]
[351157583,1738369774621,-500.0,0.00016859,2]
[351157584,1738369774642,-500.0,0.00016859,2]
[351157585,1738369774663,-500.0,0.00016859,2]
[351157586,1738369774684,-500.0,0.00016859,2]
[351157587,1738369774706,-233.36674255,0.00016859,2]
[351157588,1738369774729,-500.0,0.00016859,2]
[351157589,1738369774753,-500.0,0.00016859,2]
[351157590,1738369774775,-500.0,0.00016859,2]
[351157591,1738369774796,-597.28,0.00016859,2]
[351157592,1738369774817,-500.0,0.00016859,2]
[351157593,1738369774839,-500.0,0.00016859,2]
[351157594,1738369774859,-500.0,0.00016859,2]
[351157595,1738369774879,-500.0,0.00016859,2]
[351157596,1738369774899,-500.0,0.00016859,2]
[351157597,1738369774919,-500.0,0.00016859,2]
[351157598,1738369774939,-500.0,0.0001686,2]
[351157599,1738369774960,-500.0,0.0001686,2]
[351157600,1738369774980,-500.0,0.0001686,2]
[351157601,1738369775001,-500.0,0.0001686,2]
[351157602,1738369775021,-500.0,0.0001686,2]
[351157603,1738369775042,-500.0,0.0001686,2]
[351157604,1738369775062,-500.0,0.0001686,2]
[351157605,1738369775082,-500.0,0.0001686,2]
[351157606,1738369775102,-500.0,0.0001686,2]
[351157607,1738369775121,-500.0,0.0001686,2]
[351157608,1738369775142,-500.0,0.0001686,2]
[351157609,1738369775161,-500.0,0.0001686,2]
[351157610,1738369775186,-500.0,0.0001686,2]
[351157611,1738369775206,-500.0,0.0001686,2]
[351157612,1738369775228,-222.44,0.0001686,2]
[351157613,1738369775249,-500.0,0.0001686,2]
[351157614,1738369775274,-500.0,0.0001686,2]
[351157615,1738369775295,-500.0,0.0001686,2]
[351157616,1738369775314,-500.0,0.0001686,2]
[351157617,1738369775334,-500.0,0.0001686,2]
[351157618,1738369775357,-1872.27,0.0001686,2]
[351157619,1738369775378,-500.0,0.0001686,2]
[351157620,1738369775398,-500.0,0.0001686,2]
[351157621,1738369775419,-151.0,0.0001686,2]
[351157622,1738369775439,-500.0,0.0001686,2]
[351157623,1738369775459,-152.020225,0.0001686,2]
[351157624,1738369775481,-151.0,0.0001686,2]
[351157625,1738369775500,-151.0,0.0001686,2]
[351157626,1738369775521,-151.0,0.0001686,2]
[351157627,1738369775542,-512.8073261,0.0001686,2]
[351157628,1738369775562,-500.0,0.0001686,2]
[351157629,1738369775582,-151.0,0.0001686,2]
[351157630,1738369775602,-151.0,0.0001686,2]
[351157631,1738369775621,-500.0,0.0001686,2]
[351157632,1738369775644,-5001.12,0.0001686,2]
[351157633,1738369775664,-500.0,0.0001686,2]
[351157634,1738369775684,-500.0,0.0001686,2]
[351157635,1738369775705,-327.89734091,0.000169,2]
[351157636,1738369775727,-450.87354859,0.00016985,2]
[351157637,1738369775748,-500.0,0.00016986,2]
[351157638,1738369775771,-844.76,0.00016986,2]
[351157639,1738369775792,-519.33,0.00016986,2]
[351157640,1738369775814,-500.0,0.00016986,2]
[351157641,1738369775837,-841.68,0.00016986,2]
[351157642,1738369775859,-500.0,0.00016986,2]
[351157643,1738369775882,-611.63,0.00016986,2]
[351157644,1738369775904,-1030.39,0.00016986,2]
[351157645,1738369775927,-162.8490207,0.00016986,2]
[351157646,1738369775947,-500.0,0.00016986,2]
[351157647,1738369775972,-500.0,0.00016986,2]
[351157648,1738369775995,-522.38,0.00016986,2]
[351157649,1738369776018,-500.0,0.00016986,2]
[351157650,1738369776043,-500.0,0.00016986,2]
[351157651,1738369776067,-500.0,0.00016986,2]
[351157652,1738369776090,-500.0,0.00016995,2]
[351157653,1738369776110,-500.0,0.00016996,2]
[351157654,1738369776132,-500.0,0.00016996,2]
[351157655,1738369776153,-1165.64,0.00016996,2]
[351157656,1738369776174,-500.0,0.00016996,2]
[351157657,1738369776199,-500.0,0.00016996,2]
[351157658,1738369776225,-500.0,0.00016996,2]
[351157659,1738369776246,-417.16388204,0.00016996,2]
[351157660,1738369776269,-500.0,0.00016996,2]
[351157661,1738369776290,-528.66,0.00016996,2]
[351157662,1738369776310,-500.0,0.00016996,2]
[351157663,1738369776333,-500.0,0.00016996,2]
[351157664,1738369776355,-295.80963974,0.00016996,2]
[351157665,1738369776378,-574.88,0.00016996,2]
[351157666,1738369776399,-500.0,0.00016997,2]
[351157667,1738369776420,-369.93425814,0.00016997,2]
[351157668,1738369776440,-255.34,0.00016997,2]
[351157669,1738369776463,-1872.27,0.00016997,2]
[351157670,1738369776484,-500.0,0.00016997,2]
[351157671,1738369776505,-151.0,0.00016997,2]
[351157672,1738369776525,-151.0,0.00016997,2]
[351157673,1738369776545,-151.0,0.00016997,2]
[351157674,1738369776566,-151.0,0.00016997,2]
[351157675,1738369776591,-5001.12,0.00016997,2]
[351157676,1738369776615,-327.89734069,0.00017107,2]
[351157677,1738369776637,-500.0,0.00017123,2]
[351157678,1738369776663,-844.76,0.00017123,2]
[351157679,1738369776685,-519.33,0.00017123,2]
[351157680,1738369776709,-99.4965424,0.00017123,2]
[351157681,1738369778956,500.69885235,0.00016438,2]
[351157682,1738369789315,170.11818221,0.00016438,2]
[351157683,1738369797274,1068.5,0.00016438,2]
[351157684,1738369797488,64.35729926,0.00016575,2]
[351157689,1738369832254,-500.0,0.00016438,2]
[351157690,1738369832264,-500.0,0.00016438,2]
[351157691,1738369832274,-273.32038068,0.00016438,2]
[351157692,1738369832368,-226.67961932,0.00016438,2]
[351157693,1738369832377,-500.0,0.00016438,2]
[351157694,1738369832387,-633.57,0.00016438,2]
[351157695,1738369832397,-1004.14270074,0.00016575,2]
[351157696,1738369832406,-500.0,0.00016575,2]
[351157697,1738369832416,-500.0,0.00016575,2]
[351157698,1738369832425,-369.53,0.00016575,2]
[351157699,1738369832435,-500.0,0.00016575,2]
[351157700,1738369832444,-633.57,0.00016575,2]
[351157701,1738369832453,-300.0,0.00016711,2]
[351157702,1738369832463,-1068.5,0.00016712,2]
[351157703,1738369832475,-500.0,0.00016712,2]
[351157704,1738369832485,-500.0,0.00016712,2]
[351157705,1738369832494,-500.0,0.00016712,2]
[351157706,1738369832504,-633.57,0.00016712,2]
[351157707,1738369832515,-1068.5,0.00016849,2]
[351157708,1738369832524,-500.0,0.00016849,2]
[351157709,1738369832534,-500.0,0.00016849,2]
[351157710,1738369832543,-500.0,0.00016849,2]
[351157711,1738369832553,-633.57,0.00016849,2]
[351157712,1738369832563,-500.0,0.00016859,2]
[351157713,1738369832572,-500.0,0.00016859,2]
[351157714,1738369832581,-1716.25,0.00016859,2]
[351157715,1738369832591,-500.0,0.00016859,2]
[351157716,1738369832600,-500.0,0.00016859,2]
[351157717,1738369832609,-394.63131351,0.00016859,2]
[351157718,1738369832621,-105.36868649,0.00016859,2]
[351157719,1738369832631,-399.28137351,0.00016859,2]
[351157720,1738369832643,-100.71862649,0.00016859,2]
[351157721,1738369832652,-450.93813851,0.00016859,2]
[351157722,1738369832664,-49.06186149,0.00016859,2]
[351157723,1738369832673,-380.07813851,0.00016859,2]
[351157736,1738369838050,-119.92186149,0.00016859,2]
[351157737,1738369838059,-180.07813851,0.00016859,2]
[351157738,1738369838107,-319.92186149,0.00016859,2]
[351157739,1738369838116,-355.38534155,0.00016859,2]
[351157740,1738369838130,-144.61465845,0.00016859,2]
[351157741,1738369838139,-566.72796838,0.0001686,5]
[351157742,1738369838165,-753.75228225,0.0001686,5]
[351157743,1738369838176,-461.01068651,0.0001686,5]
[351157744,1738369838187,-25932.04034937,0.0001686,5]
[351157745,1738369838196,-151.0,0.0001686,2]
[351157746,1738369838206,-151.0,0.0001686,2]
[351157747,1738369838218,-151.0,0.0001686,2]
[351157748,1738369838228,-186.89219,0.0001686,2]
[351157749,1738369838238,-151.0,0.0001686,2]
[351157750,1738369838247,-500.0,0.00016873,2]
[351157751,1738369838258,-1068.5,0.00016986,2]
[351157753,1738369838267,-500.0,0.00016986,2]
[351157754,1738369838276,-500.0,0.00016986,2]
[351157755,1738369838287,-500.0,0.00016986,2]
[351157756,1738369838296,-633.57,0.00016986,2]
[351157757,1738369838306,-1716.25,0.00016996,2]
[351157758,1738369838315,-500.0,0.00016996,2]
[351157759,1738369838325,-428.94036653,0.00017123,2]
[351157760,1738369838419,-412.73963347,0.00017123,2]
[351157761,1738369838429,-500.0,0.00017123,2]
[351157762,1738369838438,-611.63,0.00017123,2]
[351157763,1738369838448,-1030.39,0.00017123,2]
[351157764,1738369838457,-500.0,0.00017123,2]
[351157765,1738369838467,-500.0,0.00017123,2]
[351157766,1738369838477,-522.38,0.00017123,2]
[351157767,1738369838486,-500.0,0.00017123,2]
[351157768,1738369838496,-500.0,0.00017123,2]
[351157769,1738369838506,-500.0,0.00017123,2]
[351157770,1738369838515,-1068.5,0.00017123,2]
[351157771,1738369838525,-500.0,0.00017123,2]
[351157772,1738369838534,-500.0,0.00017123,2]
[351157773,1738369838544,-435.37386521,0.00017123,2]
[351157774,1738369838554,-633.57,0.00017123,2]
[351157775,1738369838673,-500.0,0.00017133,2]
[351157776,1738369838687,-151.0,0.00017133,2]
[351157777,1738369838696,-500.0,0.00017133,2]
[351157778,1738369838707,-151.0,0.00017133,2]
[351157779,1738369838716,-151.0,0.00017133,2]
[351157780,1738369838726,-528.66,0.00017133,2]
[351157781,1738369838735,-500.0,0.00017133,2]
[351157782,1738369838745,-500.0,0.00017133,2]
[351157783,1738369838754,-1716.25,0.00017133,2]
[351157784,1738369838763,-500.0,0.00017133,2]
[351157785,1738369838773,-151.0,0.00017134,2]
[351157786,1738369838782,-5001.12,0.00017134,2]
[351157787,1738369838791,-151.0,0.00017134,2]
[351157788,1738369838801,-151.0,0.00017134,2]
[351157789,1738369838810,-151.0,0.00017134,2]
[351157790,1738369838819,-151.0,0.000172,2]
[351157791,1738369838829,-841.68,0.0001726,2]
[351157792,1738369838838,-500.0,0.0001726,2]
[351157793,1738369838847,-611.63,0.0001726,2]
[351157794,1738369838856,-1030.39,0.0001726,2]
[351157795,1738369838865,-151.0,0.0001726,2]
[351157796,1738369838874,-151.0,0.0001726,2]
[351157797,1738369838884,-151.0,0.0001726,2]
[351157798,1738369838893,-500.0,0.0001726,2]
[351157799,1738369838903,-500.0,0.0001726,2]
[351157800,1738369838913,-522.38,0.0001726,2]
[351157801,1738369838922,-151.0,0.0001726,2]
[351157802,1738369838931,-500.0,0.0001726,2]
[351157803,1738369838941,-500.0,0.0001726,2]
[351157804,1738369838951,-500.0,0.0001726,2]
[351157805,1738369838961,-1068.5,0.0001726,2]
[351157806,1738369838970,-500.0,0.0001726,2]
[351157807,1738369838980,-500.0,0.0001726,2]
[351157808,1738369838990,-151.0,0.0001726,2]
[351157809,1738369838999,-633.57,0.0001726,2]
[351157810,1738369839008,-500.0,0.0001727,2]
[351157811,1738369839018,-528.66,0.0001727,2]
[351157812,1738369839029,-500.0,0.0001727,2]
[351157813,1738369839039,-500.0,0.0001727,2]
[351157814,1738369839049,-828.05240858,0.0001727,2]
[351157815,1738369839061,-888.19759142,0.0001727,2]
[351157816,1738369839072,-500.0,0.0001727,2]
[351157817,1738369839081,-151.0,0.00017271,2]
[351157818,1738369839091,-151.0,0.00017271,2]
[351157819,1738369839101,-151.0,0.00017271,2]
[351157820,1738369839111,-151.0,0.00017271,2]
[351157821,1738369839121,-174.943948,0.00017271,2]
[351157822,1738369839131,-174.943948,0.00017271,2]
[351157823,1738369839140,-3401.99456897,0.00017271,2]
[351157830,1738369840292,-1599.12543103,0.00017271,2]
[351157831,1738369840303,-841.68,0.00017397,2]
[351157832,1738369840312,-151.0,0.00017397,2]
[351157833,1738369840321,-151.0,0.00017397,2]
[351157834,1738369840331,-500.0,0.00017397,2]
[351157835,1738369840340,-611.63,0.00017397,2]
[351157836,1738369840349,-151.0,0.00017397,2]
[351157837,1738369840358,-151.0,0.00017397,2]
[351157838,1738369840367,-1030.39,0.00017397,2]
[351157839,1738369840377,-500.0,0.00017397,2]
[351157840,1738369840386,-500.0,0.00017397,2]
[351157841,1738369840395,-522.38,0.00017397,2]
[351157842,1738369840405,-500.0,0.00017397,2]
[351157843,1738369840414,-500.0,0.00017397,2]
[351157844,1738369840423,-500.0,0.00017397,2]
[351157845,1738369840432,-1068.5,0.00017397,2]
[351157846,1738369840442,-500.0,0.00017397,2]
[351157847,1738369840451,-500.0,0.00017397,2]